fUSD/lending_fUSD_20241104
["ID","MTS","AMOUNT","RATE_DAILY","PERIOD"]
[341294840,1730742697072,-293.89,0.00034794,2]
[341294841,1730742697084,-2019.64,0.00034794,2]
[341294842,1730742697094,-500.0,0.00034794,2]
[341294843,1730742697105,-500.0,0.00034794,2]
[341294844,1730742697115,-2888.83,0.00034794,2]
[341294845,1730742697127,-500.0,0.00034794,2]
[341294846,1730742697138,-500.0,0.00034794,2]
[341294847,1730742697147,-500.0,0.00034794,2]
[341294848,1730742697156,-500.0,0.00034794,2]
[341294849,1730742697165,-500.0,0.00034794,2]
[341294850,1730742697178,-500.0,0.00034794,2]
[341294851,1730742697190,-500.0,0.00034794,2]
[341294852,1730742697200,-500.0,0.00034794,2]
[341294853,1730742697210,-500.0,0.00034794,2]
[341294854,1730742697220,-500.0,0.00034794,2]
[341294855,1730742697230,-500.0,0.00034794,2]
[341294856,1730742697241,-500.0,0.00034794,2]
[341294857,1730742697252,-500.0,0.00034794,2]
[341294858,1730742697263,-500.0,0.00034794,2]
[341294859,1730742697274,-500.0,0.00034794,2]
[341294860,1730742697283,-500.0,0.00034794,2]
[341294861,1730742697294,-500.0,0.00034794,2]
[341294862,1730742697304,-500.0,0.00034794,2]
[341294863,1730742697315,-546.74,0.00034794,2]
[341294864,1730742697325,-500.0,0.00034794,2]
[341294865,1730742697335,-494.04622305,0.00034794,2]
[341294866,1730742697346,-500.0,0.00034794,2]
[341294867,1730742697356,-500.0,0.00034794,2]
[341294868,1730742697367,-500.0,0.00034794,2]
[341294869,1730742697377,-500.0,0.00034794,2]
[341294870,1730742697387,-446.53047824,0.00034794,2]
[341294871,1730742697399,-232.49,0.00034794,2]
[341294872,1730742697409,-500.0,0.00034794,2]
[341294873,1730742697420,-500.0,0.00034794,2]
[341294874,1730742697430,-500.0,0.00034794,2]
[341294875,1730742697439,-500.0,0.00034794,2]
[341294876,1730742697448,-500.0,0.00034794,2]
[341294877,1730742697459,-500.0,0.00034794,2]
[341294878,1730742697468,-500.0,0.00034794,2]
[341294879,1730742697478,-500.0,0.00034794,2]
[341294880,1730742697487,-500.0,0.00034794,2]
[341294881,1730742697497,-500.0,0.00034794,2]
[341294882,1730742697508,-500.0,0.00034794,2]
[341294883,1730742697519,-189.88,0.00034794,2]
[341294884,1730742697529,-214.26,0.00034794,2]
[341294885,1730742697538,-670.23,0.00034794,2]
[341294886,1730742697548,-569.43519816,0.00034794,2]
[341294887,1730742697558,-808.56,0.00034794,2]
[341294888,1730742697568,-500.0,0.00034794,2]
[341294889,1730742697578,-500.0,0.00034794,2]
[341294890,1730742697588,-500.0,0.00034794,2]
[341294891,1730742697704,-500.0,0.00034794,2]
[341294892,1730742697716,-500.0,0.00034794,2]
[341294893,1730742697726,-500.0,0.00034794,2]
[341294894,1730742697736,-500.0,0.00034794,2]
[341294895,1730742697746,-500.0,0.00034794,2]
[341294896,1730742697756,-500.0,0.00034794,2]
[341294897,1730742697766,-500.0,0.00034794,2]
[341294898,1730742697776,-500.0,0.00034794,2]
[341294899,1730742697787,-500.0,0.00034794,2]
[341294900,1730742697796,-500.0,0.00034794,2]
[341294901,1730742697806,-772.27,0.00034794,2]
[341294902,1730742697816,-151.0,0.00034794,7]
[341294903,1730742697826,-150.84,0.00034794,2]
[341294904,1730742697837,-500.0,0.00034794,2]
[341294905,1730742697847,-500.0,0.00034794,2]
[341294906,1730742697857,-500.0,0.00034794,2]
[341294907,1730742697871,-500.0,0.00034794,2]
[341294908,1730742697880,-500.0,0.00034794,2]
[341294909,1730742697890,-1796.31,0.00034794,2]
[341294910,1730742697899,-500.0,0.00034794,2]
[341294911,1730742697909,-151.0,0.00034794,7]
[341294912,1730742697919,-500.0,0.00034794,2]
[341294913,1730742697930,-892.76,0.00034794,2]
[341294914,1730742697941,-500.0,0.00034794,2]
[341294915,1730742697952,-1079.31,0.00034794,2]
[341294916,1730742697962,-500.0,0.00034794,2]
[341294917,1730742697971,-1578.1,0.00034794,2]
[341294918,1730742697981,-500.0,0.00034794,2]
[341294919,1730742697991,-249.37,0.00034794,2]
[341294920,1730742698001,-500.0,0.00034794,2]
[341294921,1730742698010,-228.4505651,0.00034794,2]
[341294922,1730742698020,-500.0,0.00034794,2]
[341294923,1730742698031,-500.0,0.00034794,2]
[341294924,1730742698041,-548.32,0.00034794,2]
[341294925,1730742698051,-500.0,0.00034794,2]
[341294926,1730742698060,-500.0,0.00034794,2]
[341294927,1730742698070,-500.0,0.00034794,2]
[341294928,1730742698082,-500.0,0.00034794,2]
[341294929,1730742698093,-500.0,0.00034794,2]
[341294930,1730742698103,-648.18,0.00034794,2]
[341294931,1730742698112,-523.09243597,0.00034794,2]
[341294932,1730742698121,-500.0,0.00034794,2]
[341294933,1730742698132,-1746.57,0.00034794,2]
[341294934,1730742698142,-584.05,0.00034794,2]
[341294935,1730742698152,-874.94,0.00034794,2]
[341294936,1730742698162,-500.0,0.00034794,2]
[341294937,1730742698172,-500.0,0.00034794,2]
[341294938,1730742698181,-151.0,0.00034794,7]
[341294939,1730742698190,-509.74,0.00034794,2]
[341294940,1730742698199,-1114.7,0.00034794,2]
[341294941,1730742698209,-151.0,0.00034794,7]
[341294942,1730742698219,-749.38,0.00034794,2]
[341294943,1730742698228,-514.3,0.00034794,2]
[341294944,1730742698238,-500.0,0.00034794,2]
[341294945,1730742698249,-589.4785045,0.00034794,2]
[341294946,1730742698258,-500.0,0.00034794,2]
[341294947,1730742698267,-686.19,0.00034794,2]
[341294948,1730742698278,-500.0,0.00034794,2]
[341294949,1730742698287,-500.0,0.00034794,2]
[341294950,1730742698298,-500.0,0.00034794,2]
[341294951,1730742698310,-937.69,0.00034794,2]
[341294952,1730742698321,-500.0,0.00034794,2]
[341294953,1730742698331,-951.16,0.00034794,2]
[341294954,1730742698340,-500.0,0.00034794,2]
[341294955,1730742698349,-388.23742038,0.00034794,2]
[341294956,1730742698358,-500.0,0.00034794,2]
[341294957,1730742698367,-500.0,0.00034794,2]
[341294958,1730742698376,-500.0,0.00034794,2]
[341294959,1730742698385,-151.0,0.00034794,7]
[341294960,1730742698395,-796.06,0.00034794,2]
[341294961,1730742698405,-493.69010774,0.00034794,2]
[341294962,1730742698415,-476.92,0.00034794,2]
[341294963,1730742698426,-1490.66,0.00034794,2]
[341294964,1730742698435,-500.0,0.00034794,2]
[341294965,1730742698445,-500.0,0.00034794,2]
[341294966,1730742698456,-1020.75,0.00034794,2]
[341294967,1730742698469,-500.0,0.00034794,2]
[341294968,1730742698480,-500.0,0.00034794,2]
[341294969,1730742698491,-500.0,0.00034794,2]
[341294970,1730742698500,-940.86,0.00034794,2]
[341294971,1730742698511,-500.0,0.00034794,2]
[341294972,1730742698520,-500.0,0.00034794,2]
[341294973,1730742698531,-500.0,0.00034794,2]
[341294974,1730742698540,-500.0,0.00034794,2]
[341294975,1730742698550,-500.0,0.00034794,2]
[341294976,1730742698559,-582.98,0.00034794,2]
[341294977,1730742698568,-562.81,0.00034794,2]
[341294978,1730742698578,-500.0,0.00034794,2]
[341294979,1730742698587,-806.05,0.00034794,2]
[341294980,1730742698597,-500.0,0.00034794,2]
[341294981,1730742698607,-1395.9,0.00034794,2]
[341294982,1730742698617,-500.0,0.00034794,2]
[341294983,1730742698627,-547.71323089,0.00034794,2]
[341294984,1730742698638,-500.0,0.00034794,2]
[341294985,1730742698647,-543.31,0.00034794,2]
[341294986,1730742698658,-586.54,0.00034794,2]
[341294987,1730742698668,-500.0,0.00034794,2]
[341294988,1730742698678,-500.0,0.00034794,2]
[341294989,1730742698687,-500.0,0.00034794,2]
[341294990,1730742698698,-500.0,0.00034794,2]
[341294991,1730742698709,-757.63,0.00034794,2]
[341294992,1730742698719,-500.0,0.00034794,2]
[341294993,1730742698728,-594.4,0.00034794,2]
[341294994,1730742698739,-500.0,0.00034794,2]
[341294995,1730742698748,-500.0,0.00034794,2]
[341294996,1730742698758,-587.94161237,0.00034794,2]
[341294997,1730742698767,-647.15381834,0.00034794,2]
[341294998,1730742698779,-500.0,0.00034794,2]
[341294999,1730742698787,-500.0,0.00034794,2]
[341295000,1730742698797,-500.0,0.00034794,2]
[341295001,1730742698807,-629.76,0.00034794,2]
[341295002,1730742698817,-856.45,0.00034794,2]
[341295003,1730742698827,-500.0,0.00034794,2]
[341295004,1730742698838,-500.0,0.00034794,2]
[341295005,1730742698847,-500.0,0.00034794,2]
[341295006,1730742698860,-951.82,0.00034794,2]
[341295007,1730742698871,-500.0,0.00034794,2]
[341295008,1730742698881,-500.0,0.00034794,2]
[341295009,1730742698890,-500.0,0.00034794,2]
[341295010,1730742698900,-500.0,0.00034794,2]
[341295011,1730742698910,-500.0,0.00034794,2]
[341295012,1730742698919,-500.0,0.00034794,2]
[341295013,1730742698933,-500.0,0.00034794,2]
[341295014,1730742698943,-605.28754933,0.00034794,2]
[341295015,1730742698953,-500.0,0.00034794,2]
[341295016,1730742698962,-500.0,0.00034794,2]
[341295017,1730742698971,-500.0,0.00034794,2]
[341295018,1730742698979,-500.0,0.00034794,2]
[341295019,1730742698989,-190.13589649,0.00034794,2]
[341295020,1730742698998,-515.42,0.00034794,2]
[341295021,1730742699008,-500.0,0.00034794,2]
[341295022,1730742699017,-500.0,0.00034794,2]
[341295023,1730742699026,-500.0,0.00034794,2]
[341295024,1730742699035,-500.0,0.00034794,2]
[341295025,1730742699045,-500.0,0.00034794,2]
[341295026,1730742699054,-584.69337942,0.00034794,2]
[341295027,1730742699063,-500.0,0.00034794,2]
[341295028,1730742699073,-500.0,0.00034794,2]
[341295029,1730742699082,-500.0,0.00034794,2]
[341295030,1730742699091,-500.0,0.00034794,2]
[341295031,1730742699101,-500.0,0.00034794,2]
[341295032,1730742699110,-1486.93,0.00034794,2]
[341295033,1730742699119,-1338.47,0.00034794,2]
[341295034,1730742699128,-479.74,0.00034794,2]
[341295035,1730742699137,-1253.18,0.00034794,2]
[341295036,1730742699147,-1030.08,0.00034794,2]
[341295037,1730742699156,-500.0,0.00034794,2]
[341295038,1730742699166,-513.86635287,0.00034794,2]
[341295039,1730742699178,-350.38,0.00034794,2]
[341295040,1730742699188,-733.3,0.00034794,2]
[341295041,1730742699197,-500.0,0.00034794,2]
[341295042,1730742699206,-500.0,0.00034794,2]
[341295043,1730742699216,-500.0,0.00034794,2]
[341295044,1730742699225,-500.0,0.00034794,2]
[341295045,1730742699234,-500.0,0.00034794,2]
[341295046,1730742699243,-500.0,0.00034794,2]
[341295047,1730742699251,-584.25641004,0.00034794,2]
[341295048,1730742699260,-332.79975322,0.00034794,2]
[341295049,1730742699269,-500.0,0.00034794,2]
[341295050,1730742699279,-500.0,0.00034794,2]
[341295051,1730742699288,-500.0,0.00034794,2]
[341295052,1730742699298,-500.0,0.00034794,2]
[341295053,1730742699307,-500.0,0.00034794,2]
[341295054,1730742699316,-500.0,0.00034794,2]
[341295055,1730742699326,-650.17,0.00034794,2]
[341295056,1730742699336,-500.0,0.00034794,2]
[341295057,1730742699345,-500.0,0.00034794,2]
[341295058,1730742699355,-490.53809287,0.00034794,2]
[341295059,1730742699364,-500.0,0.00034794,2]
[341295060,1730742699374,-500.0,0.00034794,2]
[341295061,1730742699384,-500.0,0.00034794,2]
[341295062,1730742699393,-500.0,0.00034794,2]
[341295063,1730742699403,-500.0,0.00034794,2]
[341295064,1730742699412,-807.65,0.00034794,2]
[341295065,1730742699422,-500.0,0.00034794,2]
[341295066,1730742699431,-500.0,0.00034794,2]
[341295067,1730742699441,-500.0,0.00034794,2]
[341295068,1730742699450,-500.0,0.00034794,2]
[341295069,1730742699459,-500.0,0.00034794,2]
[341295070,1730742699468,-500.0,0.00034794,2]
[341295071,1730742699478,-237.89882952,0.00034794,2]
[341295072,1730742699487,-525.79115542,0.00034849,120]
[341295073,1730742699497,-1900.0,0.000349,12]
[341295074,1730742699506,-434.83,0.00034959,2]
[341295075,1730742699516,-528.38,0.00035066,2]
[341295076,1730742699525,-723.76,0.00035066,2]
[341295077,1730742699535,-1062.99,0.00035066,2]
[341295078,1730742699544,-508.17,0.00035066,2]
[341295079,1730742699554,-903.75,0.00035066,2]
[341295080,1730742699563,-500.0,0.00035068,2]
[341295081,1730742699573,-500.0,0.00035068,2]
[341295082,1730742699582,-500.0,0.00035068,2]
[341295083,1730742699591,-500.0,0.00035068,2]
[341295084,1730742699600,-566.10313666,0.00035068,2]
[341295085,1730742699610,-500.0,0.00035068,2]
[341295086,1730742699620,-500.0,0.00035068,2]
[341295087,1730742699630,-500.0,0.00035068,2]
[341295088,1730742699639,-500.0,0.00035068,2]
[341295089,1730742699649,-470.09185746,0.00035068,2]
[341295090,1730742699659,-500.0,0.00035068,2]
[341295091,1730742699668,-500.0,0.00035068,2]
[341295092,1730742699679,-500.0,0.00035068,2]
[341295093,1730742699688,-500.0,0.00035068,2]
[341295094,1730742699810,-500.0,0.00035068,2]
[341295095,1730742699820,-500.0,0.00035068,2]
[341295096,1730742699830,-500.0,0.00035068,2]
[341295097,1730742699840,-500.0,0.00035068,2]
[341295098,1730742699850,-500.0,0.00035068,2]
[341295099,1730742699861,-163.179594,0.00035068,2]
[341295100,1730742699872,-500.0,0.00035068,2]
[341295101,1730742699882,-500.0,0.00035068,2]
[341295102,1730742699892,-515.07,0.00035068,2]
[341295103,1730742699903,-500.0,0.00035068,2]
[341295104,1730742699913,-334.53,0.00035068,2]
[341295105,1730742699923,-715.3,0.00035068,2]
[341295106,1730742699933,-500.0,0.00035068,2]
[341295107,1730742699944,-500.0,0.00035068,2]
[341295108,1730742699954,-303.58,0.00035068,2]
[341295109,1730742699964,-500.0,0.00035068,2]
[341295110,1730742699973,-500.0,0.00035068,2]
[341295111,1730742699983,-500.0,0.00035068,2]
[341295112,1730742699992,-500.0,0.00035068,2]
[341295113,1730742700002,-500.0,0.00035068,2]
[341295114,1730742700012,-500.0,0.00035068,2]
[341295115,1730742700022,-575.14,0.00035068,2]
[341295116,1730742700032,-342.7,0.00035068,2]
[341295117,1730742700042,-500.0,0.00035068,2]
[341295118,1730742700052,-500.0,0.00035068,2]
[341295119,1730742700061,-500.0,0.00035068,2]
[341295120,1730742700071,-652.56,0.00035068,2]
[341295121,1730742700080,-500.0,0.00035068,2]
[341295122,1730742700090,-500.0,0.00035068,2]
[341295123,1730742700100,-500.0,0.00035068,2]
[341295124,1730742700109,-500.0,0.00035068,2]
[341295125,1730742700118,-500.0,0.00035068,2]
[341295126,1730742700128,-500.0,0.00035068,2]
[341295127,1730742700138,-500.0,0.00035068,2]
[341295128,1730742700147,-500.0,0.00035068,2]
[341295129,1730742700156,-535.06,0.00035068,2]
[341295130,1730742700166,-600.68,0.00035068,2]
[341295131,1730742700177,-500.0,0.00035068,2]
[341295132,1730742700187,-611.09,0.00035068,2]
[341295133,1730742700196,-781.33,0.00035068,2]
[341295134,1730742700206,-500.0,0.00035068,2]
[341295135,1730742700216,-250.10166278,0.00035068,2]
[341295136,1730742700226,-500.0,0.00035068,2]
[341295137,1730742700235,-698.73,0.00035068,2]
[341295138,1730742700245,-500.0,0.00035068,2]
[341295139,1730742700254,-585.77,0.00035068,2]
[341295140,1730742700264,-557.68,0.00035068,2]
[341295141,1730742700274,-500.0,0.00035068,2]
[341295142,1730742700283,-500.0,0.00035068,2]
[341295143,1730742700293,-500.0,0.00035068,2]
[341295144,1730742700303,-826.6,0.00035068,2]
[341295145,1730742700312,-1417.47,0.00035068,2]
[341295146,1730742700322,-500.0,0.00035068,2]
[341295147,1730742700332,-914.52,0.00035068,2]
[341295148,1730742700341,-574.52,0.00035068,2]
[341295149,1730742700351,-293.89,0.00035068,2]
[341295150,1730742700360,-2019.64,0.00035068,2]
[341295151,1730742700370,-500.0,0.00035068,2]
[341295152,1730742700379,-500.0,0.00035068,2]
[341295153,1730742700390,-2888.83,0.00035068,2]
[341295154,1730742700399,-500.0,0.00035068,2]
[341295155,1730742700408,-500.0,0.00035068,2]
[341295156,1730742700418,-500.0,0.00035068,2]
[341295157,1730742700432,-500.0,0.00035068,2]
[341295158,1730742700442,-500.0,0.00035068,2]
[341295159,1730742700451,-500.0,0.00035068,2]
[341295160,1730742700460,-210.97981815,0.00035068,2]
[341295161,1730742700469,-517.18303361,0.00035068,2]
[341295162,1730742700478,-500.0,0.00035068,2]
[341295163,1730742700487,-500.0,0.00035068,2]
[341295164,1730742700496,-500.0,0.00035068,2]
[341295165,1730742700506,-500.0,0.00035068,2]
[341295166,1730742700516,-500.0,0.00035068,2]
[341295167,1730742700525,-500.0,0.00035068,2]
[341295168,1730742700534,-500.0,0.00035068,2]
[341295169,1730742700544,-500.0,0.00035068,2]
[341295170,1730742700553,-500.0,0.00035068,2]
[341295171,1730742700562,-500.0,0.00035068,2]
[341295172,1730742700572,-500.0,0.00035068,2]
[341295173,1730742700582,-336.42,0.00035068,2]
[341295174,1730742700591,-500.0,0.00035068,2]
[341295175,1730742700601,-500.0,0.00035068,2]
[341295176,1730742700611,-500.0,0.00035068,2]
[341295177,1730742700621,-500.0,0.00035068,2]
[341295178,1730742700630,-151.0,0.00035068,7]
[341295179,1730742700640,-500.0,0.00035068,2]
[341295180,1730742700649,-500.0,0.00035068,2]
[341295181,1730742700659,-159.206604,0.00035068,7]
[341295182,1730742700668,-613.3,0.00035068,2]
[341295183,1730742700680,-500.0,0.00035068,2]
[341295184,1730742700689,-500.0,0.00035068,2]
[341295185,1730742700699,-500.0,0.00035068,2]
[341295186,1730742700708,-500.0,0.00035068,2]
[341295187,1730742700718,-561.61136901,0.00035068,2]
[341295188,1730742700727,-500.0,0.00035068,2]
[341295189,1730742700736,-670.23,0.00035068,2]
[341295190,1730742700746,-808.56,0.00035068,2]
[341295191,1730742700758,-500.0,0.00035068,2]
[341295192,1730742700768,-500.0,0.00035068,2]
[341295193,1730742700777,-500.0,0.00035068,2]
[341295194,1730742700787,-500.0,0.00035068,2]
[341295195,1730742700797,-500.0,0.00035068,2]
[341295196,1730742700807,-204.267232,0.00035068,7]
[341295197,1730742700816,-500.0,0.00035068,2]
[341295198,1730742700826,-500.0,0.00035068,2]
[341295199,1730742700835,-500.0,0.00035068,2]
[341295200,1730742700844,-511.12488428,0.00035068,2]
[341295201,1730742700854,-500.0,0.00035068,2]
[341295202,1730742700868,-500.0,0.00035068,2]
[341295203,1730742700877,-500.0,0.00035068,2]
[341295204,1730742700887,-500.0,0.00035068,2]
[341295205,1730742700897,-772.27,0.00035068,2]
[341295206,1730742700908,-204.267232,0.00035068,7]
[341295207,1730742700919,-500.0,0.00035068,2]
[341295208,1730742700929,-500.0,0.00035068,2]
[341295209,1730742700940,-500.0,0.00035068,2]
[341295210,1730742700950,-500.0,0.00035068,2]
[341295211,1730742700961,-500.0,0.00035068,2]
[341295212,1730742700971,-1796.31,0.00035068,2]
[341295213,1730742700981,-500.0,0.00035068,2]
[341295214,1730742700991,-500.0,0.00035068,2]
[341295215,1730742701000,-892.76,0.00035068,2]
[341295216,1730742701010,-500.0,0.00035068,2]
[341295217,1730742701019,-1079.31,0.00035068,2]
[341295218,1730742701029,-500.0,0.00035068,2]
[341295219,1730742701038,-1578.1,0.00035068,2]
[341295220,1730742701048,-500.0,0.00035068,2]
[341295221,1730742701059,-203.98315292,0.00035068,2]
[341295222,1730742701068,-548.32,0.00035068,2]
[341295223,1730742701078,-500.0,0.00035068,2]
[341295224,1730742701088,-640.57895726,0.00035068,2]
[341295225,1730742701098,-500.0,0.00035068,2]
[341295226,1730742701108,-500.0,0.00035068,2]
[341295227,1730742701118,-225.62662521,0.00035068,2]
[341295228,1730742701128,-648.18,0.00035068,2]
[341295229,1730742701139,-500.0,0.00035068,2]
[341295230,1730742701149,-1746.57,0.00035068,2]
[341295231,1730742701158,-584.05,0.00035068,2]
[341295232,1730742701168,-874.94,0.00035068,2]
[341295233,1730742701181,-500.0,0.00035068,2]
[341295234,1730742701190,-500.0,0.00035068,2]
[341295235,1730742701199,-1114.7,0.00035068,2]
[341295236,1730742701208,-749.38,0.00035068,2]
[341295237,1730742701217,-514.3,0.00035068,2]
[341295238,1730742701227,-500.0,0.00035068,2]
[341295239,1730742701236,-532.23785142,0.00035068,2]
[341295240,1730742701245,-686.19,0.00035068,2]
[341295241,1730742701254,-500.0,0.00035068,2]
[341295242,1730742701264,-500.0,0.00035068,2]
[341295243,1730742701273,-500.0,0.00035068,2]
[341295244,1730742701282,-937.69,0.00035068,2]
[341295245,1730742701291,-500.0,0.00035068,2]
[341295246,1730742701300,-951.16,0.00035068,2]
[341295247,1730742701309,-500.0,0.00035068,2]
[341295248,1730742701318,-500.0,0.00035068,2]
[341295249,1730742701327,-500.0,0.00035068,2]
[341295250,1730742701336,-500.0,0.00035068,2]
[341295251,1730742701345,-796.06,0.00035068,2]
[341295252,1730742701355,-1490.66,0.00035068,2]
[341295253,1730742701364,-500.0,0.00035068,2]
[341295254,1730742701373,-351.12,0.00035068,2]
[341295255,1730742701382,-1020.75,0.00035068,2]
[341295256,1730742701391,-350.92903291,0.00035068,2]
[341295257,1730742701401,-500.0,0.00035068,2]
[341295258,1730742701410,-341.46,0.00035068,2]
[341295259,1730742701419,-940.86,0.00035068,2]
[341295260,1730742701432,-500.0,0.00035068,2]
[341295261,1730742701441,-500.0,0.00035068,2]
[341295262,1730742701450,-500.0,0.00035068,2]
[341295263,1730742701459,-500.0,0.00035068,2]
[341295264,1730742701468,-582.98,0.00035068,2]
[341295265,1730742701478,-562.81,0.00035068,2]
[341295266,1730742701487,-500.0,0.00035068,2]
[341295267,1730742701496,-806.05,0.00035068,2]
[341295268,1730742701505,-454.14,0.00035068,2]
[341295269,1730742701514,-1395.9,0.00035068,2]
[341295270,1730742701523,-500.0,0.00035068,2]
[341295271,1730742701533,-543.31,0.00035068,2]
[341295272,1730742701542,-500.0,0.00035068,2]
[341295273,1730742701551,-500.0,0.00035068,2]
[341295274,1730742701559,-571.02,0.00035068,2]
[341295275,1730742701568,-500.0,0.00035068,2]
[341295276,1730742701578,-757.63,0.00035068,2]
[341295277,1730742701587,-500.0,0.00035068,2]
[341295278,1730742701597,-594.4,0.00035068,2]
[341295279,1730742701607,-500.0,0.00035068,2]
[341295280,1730742701717,-500.0,0.00035068,2]
[341295281,1730742701727,-500.0,0.00035068,2]
[341295282,1730742701736,-500.0,0.00035068,2]
[341295283,1730742701745,-500.0,0.00035068,2]
[341295284,1730742701754,-856.45,0.00035068,2]
[341295285,1730742701764,-500.0,0.00035068,2]
[341295286,1730742701773,-500.0,0.00035068,2]
[341295287,1730742701782,-500.0,0.00035068,2]
[341295288,1730742701791,-951.82,0.00035068,2]
[341295289,1730742701800,-500.0,0.00035068,2]
[341295290,1730742701809,-500.0,0.00035068,2]
[341295291,1730742701818,-500.0,0.00035068,2]
[341295292,1730742701828,-500.0,0.00035068,2]
[341295293,1730742701837,-568.72,0.00035068,2]
[341295294,1730742701846,-500.0,0.00035068,2]
[341295295,1730742701855,-500.0,0.00035068,2]
[341295296,1730742701866,-634.09593554,0.00035068,2]
[341295297,1730742701875,-500.0,0.00035068,2]
[341295298,1730742701884,-500.0,0.00035068,2]
[341295299,1730742701893,-500.0,0.00035068,2]
[341295300,1730742701902,-515.42,0.00035068,2]
[341295301,1730742701913,-550.55,0.00035068,2]
[341295302,1730742701923,-500.0,0.00035068,2]
[341295303,1730742701931,-500.0,0.00035068,2]
[341295304,1730742701941,-500.0,0.00035068,2]
[341295305,1730742701949,-230.9,0.00035068,2]
[341295306,1730742701959,-500.0,0.00035068,2]
[341295307,1730742701970,-500.0,0.00035068,2]
[341295308,1730742701979,-590.0613985,0.00035068,2]
[341295309,1730742701990,-500.0,0.00035068,2]
[341295310,1730742701999,-500.0,0.00035068,2]
[341295311,1730742702009,-1486.93,0.00035068,2]
[341295312,1730742702019,-1338.47,0.00035068,2]
[341295313,1730742702030,-1030.08,0.00035068,2]
[341295314,1730742702040,-1253.18,0.00035068,2]
[341295315,1730742702050,-500.0,0.00035068,2]
[341295316,1730742702061,-733.3,0.00035068,2]
[341295317,1730742702072,-164.91633353,0.00035068,2]
[341295318,1730742702081,-500.0,0.00035068,2]
[341295319,1730742702091,-500.0,0.00035068,2]
[341295320,1730742702100,-500.0,0.00035068,2]
[341295321,1730742702110,-500.0,0.00035068,2]
[341295322,1730742702121,-500.0,0.00035068,2]
[341295323,1730742702131,-500.0,0.00035068,2]
[341295324,1730742702141,-500.0,0.00035068,2]
[341295325,1730742702152,-500.0,0.00035068,2]
[341295326,1730742702162,-464.48,0.00035068,2]
[341295327,1730742702172,-500.0,0.00035068,2]
[341295328,1730742702182,-500.0,0.00035068,2]
[341295329,1730742702191,-650.17,0.00035068,2]
[341295330,1730742702202,-500.0,0.00035068,2]
[341295331,1730742702213,-329.91579,0.00035068,2]
[341295332,1730742702223,-500.0,0.00035068,2]
[341295333,1730742702234,-500.0,0.00035068,2]
[341295334,1730742702244,-500.0,0.00035068,2]
[341295335,1730742702254,-500.0,0.00035068,2]
[341295336,1730742702265,-807.65,0.00035068,2]
[341295337,1730742702277,-166.06,0.00035068,2]
[341295338,1730742702286,-500.0,0.00035068,2]
[341295339,1730742702296,-500.0,0.00035068,2]